bitfinex/quotes_ETHUSD_20220105
["timestamp","ask_amount","ask_price","bid_price","bid_amount"]
[1641420732749,0.01237191,3519.6,3518.9,7.9]
[1641420732949,10.37807115,3521.2,3518.9,7.9]
[1641420732950,10.35897115,3521.2,3519.5,2.0]
[1641420733152,2.15537537,3524.2,3519.7,7.9]
[1641420733153,5.6812,3521.1,3519.7,7.9]
[1641420733351,2.59436951,3521.1,3520.2,7.098]
[1641420733549,2.01253199,3523.8,3520.4,7.9]
[1641420733753,1.41742329,3522.9,3520.5,0.44945811]
[1641420733952,0.00511582,3522.0,3520.5,0.45286865]
[1641420734151,1.42253911,3522.0,3520.6,0.00284211]
[1641420734358,0.00454739,3521.9,3520.6,0.00284211]
[1641420734557,1.08925468,3521.9,3520.7,0.328]
[1641420734756,1.08925468,3521.9,3520.7,1.0232]
[1641420734757,0.00397897,3521.8,3520.7,1.0232]
[1641420734958,0.00397897,3521.8,3521.6,1.28870346]
[1641420735163,5.68251055,3521.7,3521.6,1.28870346]
[1641420735358,5.68251055,3521.7,3520.8,0.00170527]
[1641420735561,5.68251055,3521.7,3520.9,0.328]
[1641420735757,0.00284212,3521.6,3521.2,0.46961923]
[1641420735967,0.00284212,3521.6,3519.0,0.1171]
[1641420735968,3.4888,3520.6,3519.0,0.1171]
[1641420736233,3.4888,3520.6,3518.6,1.0]
[1641420736234,2.4982524,3520.5,3518.6,1.0]
[1641420736419,8.2513524,3520.5,3519.5,0.00625266]
[1641420736615,27.78867394,3520.4,3519.5,5.266e-05]
[1641420736816,3.4908,3519.6,3518.6,0.43959959]
[1641420737220,5.6291,3519.5,3518.7,2.83085245]
[1641420737426,1.294e-05,3518.9,3518.8,11.74922567]
[1641420737621,5.6291,3519.5,3518.8,11.74922567]
[1641420737622,5.6291,3519.5,3518.8,13.4408419]
[1641420737820,0.00449473,3520.3,3519.0,3.0]
[1641420738020,0.00449473,3520.3,3519.6,0.01248773]
[1641420738218,0.0039263,3520.2,3519.7,1.334068]
[1641420738419,0.0039263,3520.2,3519.7,1.934068]
[1641420738619,0.00335788,3520.1,3519.7,1.934068]
[1641420739023,0.00278946,3520.0,3519.8,0.465641]
[1641420739220,8.946e-05,3520.0,3519.9,12.326]
[1641420739424,2.4982524,3524.1,3519.9,12.326]
[1641420739425,12.1449196,3523.8,3520.0,7.9]
[1641420739625,0.01263592,3522.1,3520.0,2.4982524]
[1641420739823,2.5,3521.9,3519.8,0.0120447]
[1641420740055,5.6788,3521.8,3520.5,0.01229235]
[1641420740252,8.18737348,3521.8,3520.8,0.50310745]
[1641420740449,8.18737348,3521.8,3519.8,0.0120447]
[1641420740450,0.00975266,3521.7,3519.8,0.0120447]
[1641420740649,5.6788,3521.6,3519.8,0.0120447]
[1641420740855,2.5,3520.6,3519.8,0.0120447]
[1641420741051,2.5,3520.6,3519.8,4.47e-05]
[1641420741052,5.6788,3520.5,3519.8,4.47e-05]
[1641420741252,7.9,3520.4,3517.6,0.14670263]
[1641420741453,7.9,3520.4,3517.1,0.0129989]
[1641420741454,8.1770524,3520.3,3517.1,0.0129989]
[1641420741656,0.01201714,3519.6,3517.7,0.01065793]
[1641420741858,5.6788,3519.5,3517.7,0.01065793]
[1641420742253,5.6788,3519.5,3517.5,0.01179478]
[1641420742254,0.108,3519.4,3517.5,0.01179478]
[1641420742454,5.6788,3519.3,3517.5,1.27469417]
[1641420742654,0.59199803,3518.8,3517.5,1.27469417]
[1641420742852,7.9,3518.6,3516.8,2.81457766]
[1641420743055,7.9,3518.6,3516.7,0.6417971]
[1641420743056,5.6848,3518.5,3516.7,0.6417971]
[1641420743354,0.00454739,3518.4,3516.8,2.8262524]
[1641420743554,5.6848,3518.3,3517.7,0.01211582]
[1641420743808,5.69275793,3518.3,3517.8,1.75649556]
[1641420744003,2.5,3521.0,3518.2,3.01286369]
[1641420744207,3.7935,3521.6,3518.2,3.01286369]
[1641420744208,0.1096,3521.5,3519.2,0.01266399]
[1641420744404,5.6812,3521.4,3520.3,3.0]
[1641420744604,3.0896,3521.4,3521.2,1.9688]
[1641420744802,3.01995915,3523.7,3521.4,7.1]
[1641420744803,0.01989483,3521.7,3521.4,7.1]
[1641420745005,0.01989483,3521.7,3521.5,0.76470798]
[1641420745205,5.85149671,3523.6,3521.6,7.81246198]
[1641420745402,3.0197804,3524.6,3522.1,0.1167]
[1641420745403,5.6776,3523.5,3522.1,0.1167]
[1641420745603,2.4982524,3523.4,3522.1,0.2818]
[1641420745802,8.1758524,3523.3,3522.1,0.1651]
[1641420746004,5.7065896,3523.3,3522.1,0.4651]
[1641420746203,5.7065896,3523.3,3519.1,1.0987]
[1641420746204,21.20210618,3523.2,3520.2,1.9688]
[1641420746403,8.1758524,3523.1,3520.6,1.31552267]
[1641420746603,8.1758524,3523.1,3520.7,0.328]
[1641420746604,8.39485414,3523.1,3520.7,0.328]
[1641420746806,0.22883332,3523.0,3520.7,0.328]
[1641420747003,5.95399994,3522.9,3520.7,0.328]
[1641420747208,6.19986484,3522.9,3520.7,0.328]
[1641420747464,0.01299125,3522.1,3519.2,4.098]
[1641420747650,0.01299125,3522.1,3519.9,1.40216473]
[1641420747849,0.01299125,3522.1,3520.0,0.328]
[1641420747850,5.76474909,3522.0,3520.0,0.328]
[1641420748049,5.76474909,3522.0,3519.8,0.328]
[1641420748253,5.76474909,3522.0,3518.9,0.01268058]
[1641420748254,0.42282065,3520.0,3518.9,0.01268058]
[1641420748452,0.42282065,3520.0,3518.2,0.01298157]
[1641420748453,5.6776,3519.9,3518.2,0.01298157]
[1641420748651,5.54044559,3519.9,3519.0,18.494341]
[1641420748950,5.54044559,3519.9,3518.2,0.01298157]
[1641420748951,0.12349478,3519.8,3518.2,0.01298157]
[1641420749150,5.53078239,3519.7,3518.2,0.01298157]
[1641420749354,7.9,3519.6,3518.2,0.01298157]
[1641420749550,7.9,3519.6,3518.3,0.60365998]
[1641420749551,5.53078239,3519.5,3518.3,0.60365998]
[1641420749752,5.5381719,3519.5,3517.9,0.00170527]
[1641420749952,0.00682109,3519.4,3518.5,1.30182957]
[1641420750153,5.52836139,3519.3,3517.9,0.328]
[1641420750353,5.52836139,3519.3,3518.3,0.00414327]
[1641420750354,5.53461405,3519.3,3518.3,0.00414327]
[1641420750554,0.00568424,3519.2,3518.4,0.01248957]
[1641420750856,0.13819997,3520.0,3518.7,0.49524385]
[1641420750857,5.53347721,3519.1,3518.7,0.49524385]
[1641420751059,5.53347721,3519.1,3518.4,0.01248957]
[1641420751303,0.00454739,3519.0,3518.6,1.16849219]
[1641420751702,0.00397897,3518.9,3518.6,1.16849219]
[1641420752099,5.52836139,3519.1,3518.6,1.16849219]
[1641420752100,0.00341054,3518.8,3518.6,1.16849219]
[1641420752302,0.00341054,3518.8,3518.4,0.01248957]
[1641420752303,0.00341054,3518.8,3518.5,1.16618501]
[1641420752507,0.00284212,3518.7,3518.5,1.16618501]
[1641420752905,5.52836139,3519.1,3518.6,8.228]
[1641420753105,0.1168,3521.6,3519.0,0.01228126]
[1641420753106,3.02003908,3520.2,3519.0,0.01228126]
[1641420753305,3.02003908,3520.2,3518.8,0.1541]
[1641420753306,3.0199579,3521.8,3521.2,1.39412979]
[1641420753507,5.6794,3521.7,3521.2,1.39412979]
[1641420753707,5.39929714,3521.7,3521.3,0.59279881]
[1641420753905,3.77259714,3521.7,3521.3,2.20838988]
[1641420754411,3.77259714,3521.7,3521.3,2.45838988]
[1641420754705,0.072,3522.1,3521.7,7.9]
[1641420754957,0.01247423,3523.9,3521.9,7.9]
[1641420755158,3.99816954,3524.3,3521.9,7.9]
[1641420755159,0.00397896,3522.0,3521.9,7.9]
[1641420755363,0.00397896,3522.0,3521.9,8.2]
[1641420755564,3.01989617,3524.3,3522.0,7.9]
[1641420755764,0.01279584,3524.8,3522.0,7.9]
[1641420755765,0.01279584,3524.8,3522.5,0.01261147]
[1641420755966,3.01965772,3525.2,3522.5,0.01261147]
[1641420755967,0.01193689,3524.1,3522.6,0.328]
[1641420756168,0.01193689,3524.1,3523.8,0.48561987]
[1641420756467,0.01136847,3524.0,3523.8,1.05201987]
[1641420756867,0.70664905,3524.2,3523.8,1.38001987]
[1641420756868,4e-08,3523.9,3523.8,1.38001987]
[1641420757071,0.17254909,3524.2,3523.9,7.9242032]
[1641420757371,3.01965772,3525.2,3524.1,0.01284004]
[1641420757567,3.01949479,3526.9,3524.2,0.328]
[1641420757769,3.01948219,3527.2,3526.2,1.27661446]
[1641420757966,3.01948219,3527.2,3526.2,2.05361446]
[1641420758166,3.01948219,3527.2,3525.1,0.23249492]
[1641420758368,0.012053,3526.8,3525.5,0.1756]
[1641420758566,0.00177374,3526.2,3525.6,0.328]
[1641420759006,0.01023162,3526.1,3525.6,0.328]
[1641420759406,8.21420069,3526.3,3525.7,1.74627144]
[1641420759407,0.00966319,3526.0,3525.7,1.74627144]
[1641420759611,3.01944036,3527.3,3525.8,3.828]
[1641420759807,3.01939273,3527.4,3526.6,1.0074212]
[1641420760007,4.5788,3528.8,3526.7,0.328]
[1641420760008,3.01936138,3528.0,3526.7,0.328]
[1641420760212,5.6701,3527.8,3526.8,0.328]
[1641420760412,7.9,3527.7,3526.8,0.328]
[1641420760612,0.01261148,3527.3,3526.8,0.8939551]
[1641420760812,5.6701,3527.6,3526.8,0.8939551]
[1641420760813,5.68033162,3527.6,3526.8,0.8939551]
[1641420761011,5.62805793,3527.6,3526.9,1.10760963]
[1641420761211,5.62805793,3527.6,3527.0,0.328]
[1641420761414,0.00170527,3527.5,3527.0,0.328]
[1641420761713,0.86436817,3528.4,3527.5,0.4788863]
[1641420761914,0.86436817,3528.4,3526.9,0.30476017]
[1641420761915,0.85199707,3528.4,3527.3,0.328]
[1641420762115,0.85199707,3528.4,3526.3,0.328]
[1641420762116,7.91250407,3527.7,3526.3,0.328]
[1641420762315,0.01257663,3527.2,3525.2,0.796]
[1641420762553,0.01257663,3527.2,3526.4,0.00397896]
[1641420762752,0.52529608,3526.6,3526.4,7.896e-05]
[1641420762952,5.6693,3526.5,3524.8,0.01307374]
[1641420763153,5.6693,3526.5,3525.2,0.00690004]
[1641420763355,5.6693,3526.5,3524.8,0.00917374]
[1641420763553,5.6693,3526.5,3525.0,0.01255453]
[1641420763753,5.6693,3526.5,3525.0,1.34055453]
[1641420763953,5.6471855,3525.9,3525.1,0.00746847]
[1641420764153,5.6471855,3525.9,3525.2,0.328]
[1641420764353,5.6471855,3525.9,3525.2,12.144425]
[1641420764554,5.6471855,3525.9,3525.3,0.00633162]
[1641420764760,5.6471855,3525.9,3525.4,0.328]
[1641420764958,5.6693,3526.5,3525.3,9.82179372]
[1641420764959,7.9,3526.1,3525.3,9.82179372]
[1641420765159,7.9,3526.1,3525.5,9.455084]
[1641420765357,0.00397896,3526.0,3524.6,0.328]
[1641420765558,2.73476468,3526.0,3524.6,0.328]
[1641420765756,5.68527058,3525.9,3524.7,0.00341054]
[1641420766206,0.00284212,3525.8,3523.7,0.00909478]
[1641420766605,0.00227369,3525.7,3523.7,0.00909478]
[1641420766806,0.00227369,3525.7,3525.3,1.3976947]
[1641420767008,5.6471855,3525.5,3525.3,1.3976947]
[1641420767210,5.6471855,3525.5,3525.4,0.328]
[1641420767212,3.3809855,3525.5,3525.4,0.328]
[1641420767412,3.3809855,3525.5,3525.4,0.84350714]
[1641420767611,2.38128278,3527.1,3525.5,4.9]
[1641420767813,0.01259938,3528.0,3526.5,1.28140687]
[1641420767814,3.01941065,3527.4,3526.5,1.28140687]
[1641420768012,3.01935946,3527.7,3526.5,1.28140687]
[1641420768211,8.3858,3528.8,3526.1,0.1827]
[1641420768212,5.6707,3527.2,3526.1,0.1827]
[1641420768410,0.52606637,3528.0,3526.5,0.58702534]
[1641420768610,3.01934602,3528.2,3526.5,0.58702534]
[1641420768611,0.00909477,3527.1,3526.5,0.58702534]
[1641420769011,0.00852635,3527.0,3526.5,0.88702534]
[1641420769211,0.00852635,3527.0,3526.6,1.71104304]
[1641420769212,0.00227,3526.9,3526.6,1.71104304]
[1641420769410,0.00802793,3526.9,3526.7,0.01256974]
[1641420769611,7e-05,3526.9,3526.8,8.228]
[1641420769963,4.5975,3529.1,3528.7,1.15226067]
[1641420770158,10.2465,3528.8,3528.7,1.79106067]
[1641420770459,10.2465,3528.8,3528.7,0.6388]
[1641420770855,13.4965,3528.8,3528.7,0.6388]
[1641420771058,10.2465,3528.8,3528.7,0.6388]
[1641420771256,10.2465,3528.8,3528.6,1.19242113]
[1641420771460,10.2465,3528.8,3527.8,1.16900691]
[1641420771657,0.01818955,3528.7,3527.8,0.328]
[1641420771856,5.6677,3528.6,3527.8,0.328]
[1641420772057,5.68532112,3528.6,3527.9,0.00254821]
[1641420772263,0.0170527,3528.5,3527.9,0.68874821]
[1641420772565,0.01648428,3528.4,3528.0,2.0220323]
[1641420773062,0.01591585,3528.3,3528.0,2.0220323]
[1641420773564,5.6677,3528.6,3528.0,2.0220323]
[1641420773565,0.01534743,3528.2,3528.0,1.42718314]
[1641420773805,5.6677,3528.1,3528.0,1.42718314]
[1641420774006,5.68247901,3528.1,3528.0,1.72718314]
[1641420774308,5.68247901,3528.1,3528.0,1.42718314]
[1641420774506,5.68247901,3528.1,3528.0,1.72718314]
[1641420774706,5.68247901,3528.1,3528.0,1.42718314]
[1641420774909,5.68247901,3528.1,3528.0,0.328]
[1641420775910,8.53247901,3528.1,3528.0,0.328]
[1641420776111,8.53247901,3528.1,3527.9,0.00254821]
[1641420776511,7.91421058,3528.0,3527.9,0.00254821]
[1641420776810,13.58191058,3528.0,3527.9,0.00254821]
[1641420777011,14.02869113,3528.0,3527.9,0.00254821]
[1641420777659,7.9,3527.9,3526.5,0.328]
[1641420777856,7.9,3527.9,3524.3,2.83506]
[1641420777857,7.9,3527.7,3524.3,2.83506]
[1641420778059,0.01290755,3527.0,3525.0,0.3288]
[1641420778257,5.6677,3526.9,3525.1,0.0022737]
[1641420778456,5.67565793,3526.9,3525.1,0.0022737]
[1641420778656,0.4388872,3526.1,3525.1,0.0022737]
[1641420779058,0.00284211,3526.0,3525.1,0.0022737]
[1641420779260,5.6677,3525.9,3525.1,0.0022737]
[1641420779463,5.66997369,3525.9,3525.1,0.0022737]
[1641420779659,0.00170527,3525.8,3525.1,0.0022737]
[1641420779861,5.6677,3525.7,3525.1,0.0022737]
[1641420780060,5.66883684,3525.7,3525.1,0.0022737]
[1641420780266,5.66883684,3525.7,3525.6,1.00119107]
[1641420780462,3.01947596,3526.4,3525.7,3.15]
[1641420780661,3.9702,3526.8,3525.5,0.328]
[1641420780662,6.98963305,3526.8,3526.2,1.26790256]
[1641420780863,0.777357,3526.9,3526.3,5.45]
[1641420781066,0.777357,3526.9,3526.7,0.01244339]
[1641420781323,0.777357,3526.9,3526.8,6.12376574]
[1641420781523,1.162,3528.9,3526.8,6.12376574]
[1641420781524,6.58756647,3528.7,3527.0,7.9]
[1641420781727,8.47077824,3529.9,3528.7,1.05811982]
[1641420781920,8.47077824,3529.9,3528.7,1.96041982]
[1641420782128,6.17,3528.9,3528.8,0.328]
[1641420782324,6.17,3528.9,3528.8,0.628]
[1641420782526,6.14818955,3528.9,3528.8,0.63017786]
[1641420782725,0.94896097,3529.1,3528.9,6.3]
[1641420782928,0.08260613,3529.5,3529.0,5.878]
[1641420783129,8.47077824,3529.9,3529.1,6.328]
[1641420783327,0.00284212,3529.4,3529.2,1.37900065]
[1641420783528,2.0,3530.0,3529.4,7.9]
[1641420783727,2.0,3530.0,3529.5,0.328]
[1641420783728,5.6662,3529.9,3529.5,0.328]
[1641420783927,5.66904212,3529.9,3529.5,1.328]
[1641420784126,0.00496212,3529.9,3529.6,0.42]
[1641420784327,0.00496212,3529.9,3529.7,0.328]
[1641420784527,0.00496212,3529.9,3529.8,1.42175479]
[1641420784727,1.90659312,3530.0,3529.8,1.69975479]
[1641420784986,0.00141,3531.7,3529.9,7.9]
[1641420785171,0.00141,3531.7,3530.2,1.41579]
[1641420785172,5.6653,3530.5,3530.2,1.41579]
[1641420785368,5.66871054,3530.5,3530.4,7.78824366]
[1641420785570,5.66871054,3530.5,3530.4,1.36624366]
[1641420785768,0.00559054,3530.5,3530.4,9.00426738]
[1641420785971,0.00559054,3530.5,3530.4,9.72426738]
[1641420786170,0.00559054,3530.5,3530.4,2.08624366]
[1641420786370,0.00559054,3530.5,3530.4,2.68624366]
[1641420786570,0.00559054,3530.5,3530.4,3.08624366]
[1641420786869,5.665,3530.5,3530.4,1.048]
[1641420787272,5.665,3530.5,3528.5,0.796]
[1641420787273,4.5782,3529.2,3528.5,0.796]
[1641420787489,4.5782,3529.2,3528.9,0.328]
[1641420787670,4.5782,3529.2,3528.9,0.33709478]
[1641420787871,4.5782,3529.2,3529.0,0.00852635]
[1641420788076,4.5782,3529.2,3527.8,0.328]
[1641420788375,0.52619409,3529.1,3527.9,0.00625266]
[1641420788572,0.01249279,3528.8,3527.9,0.00625266]
[1641420788810,0.01249279,3528.8,3527.1,0.01080005]
[1641420789010,0.15069276,3528.8,3527.1,0.01080005]
[1641420789410,0.13819997,3528.8,3528.5,1.44230206]
[1641420789610,0.13819997,3528.8,3528.5,0.50560206]
[1641420789910,7.9,3528.6,3528.0,2.88460412]
[1641420790110,5.6679,3528.5,3528.1,1.17331136]
[1641420790311,2.8679,3528.5,3528.1,1.17615347]
[1641420790917,4.71639997,3529.2,3528.1,1.17615347]
[1641420790918,4.5782,3529.2,3528.2,7.9]
[1641420791315,4.5782,3529.2,3528.3,1.00170527]
[1641420791316,0.00284212,3529.1,3528.3,1.00170527]
[1641420791514,0.00284212,3529.1,3528.3,1.60170527]
[1641420791715,0.0022737,3529.0,3528.4,0.00113684]
[1641420792119,4.5782,3529.2,3528.4,0.00113684]
[1641420792120,0.00170527,3528.9,3528.4,0.00113684]
[1641420792456,0.00113685,3528.8,3528.4,0.00113684]
[1641420792656,0.00113685,3528.8,3528.7,1.01653857]
[1641420793056,8.92569385,3529.0,3528.7,1.01653857]
[1641420793456,8.92569385,3529.0,3528.5,0.01301265]
[1641420793857,8.92569385,3529.0,3528.6,0.00113684]
[1641420794559,8.92569385,3529.0,3528.7,1.21845514]
[1641420794957,8.92569385,3529.0,3528.7,1.51845514]
[1641420795156,8.92569385,3529.0,3528.7,2.07738097]
[1641420795358,0.95599385,3529.2,3528.7,3.49396097]
[1641420795558,0.01208273,3531.2,3528.7,3.49396097]
[1641420795559,0.01208273,3531.2,3528.8,0.01271841]
[1641420795762,0.00170527,3529.1,3528.8,0.72099841]
[1641420795958,4.34282935,3531.6,3529.0,7.9]
[1641420796202,0.0128193,3531.0,3529.7,0.58153138]
[1641420796406,0.00738951,3530.4,3529.1,1.0]
[1641420796811,0.00682108,3530.3,3529.1,1.0]
[1641420797207,0.00625266,3530.2,3529.2,1.03413536]
[1641420797407,0.00625266,3530.2,3529.7,0.70812]
[1641420797606,0.00568424,3530.1,3530.0,0.55337711]
[1641420797806,4.34282935,3531.8,3530.1,4.7]
[1641420798006,4.34282935,3531.8,3530.1,5.0]
[1641420798209,0.00170527,3530.4,3530.0,0.55337711]
[1641420798409,5.6654,3530.3,3530.0,1.71606]
[1641420798606,11.05535286,3530.3,3530.1,1.31286191]
[1641420798807,11.05535286,3530.3,3530.2,0.01103147]
[1641420800058,11.05535286,3530.3,3530.2,3.147e-05]
[1641420800268,7.9,3530.2,3529.6,2.55393559]
[1641420800558,7.9039,3529.6,3528.8,4.80767353]
[1641420800756,7.9039,3529.6,3528.5,0.00197601]
[1641420800757,5.66206779,3528.9,3528.5,0.00197601]
[1641420800960,5.6654,3528.8,3528.5,0.00197601]
[1641420801156,5.6654,3528.8,3528.6,1.06601949]
[1641420801459,5.6654,3528.8,3528.7,0.00795793]
[1641420801960,5.6654,3528.8,3528.6,0.00852636]
[1641420802362,5.6654,3528.8,3528.7,1.10863789]
[1641420802761,5.6654,3528.8,3528.7,1.40863789]
[1641420803363,5.6654,3528.8,3528.7,1.10863789]
[1641420803569,5.6654,3528.8,3528.7,1.70863789]
[1641420804814,5.6654,3528.8,3528.7,2.41696789]
[1641420805013,1.3209571,3529.6,3528.7,2.41696789]
[1641420805014,1.3209571,3529.6,3528.8,6.65]
[1641420805218,0.01260665,3530.5,3528.8,6.65]
[1641420805219,1.3209571,3529.9,3528.8,6.65]
[1641420805415,1.3209571,3529.9,3529.7,1.27007986]
[1641420805615,11.05481602,3529.8,3529.7,1.27007986]
[1641420805819,1.3209571,3529.9,3529.8,7.9]
[1641420806015,0.7137971,3530.6,3529.9,7.4]
[1641420806219,0.7137971,3530.6,3529.9,8.4]
[1641420806419,0.7137971,3530.6,3530.4,1.31699015]
[1641420806420,0.00113685,3530.5,3530.4,1.31699015]
[1641420806617,0.00113685,3530.5,3529.8,0.60050527]
[1641420806618,0.00113685,3530.5,3529.8,0.00170527]
[1641420807015,0.00113685,3530.5,3529.5,1.0]
[1641420807016,0.00113685,3530.5,3529.5,0.30454738]
[1641420807219,0.00113685,3530.5,3529.9,0.70816]
[1641420807474,0.52507732,3530.4,3529.9,1.96108371]
[1641420807660,0.00113685,3530.5,3530.0,0.00170527]
[1641420808665,0.00113685,3530.5,3529.6,0.00397896]
[1641420808862,0.00113685,3530.5,3529.9,0.30227369]
[1641420809060,0.00113685,3530.5,3529.5,2.01632]
[1641420809061,0.00113685,3530.5,3530.0,2.70510176]
[1641420809261,0.00113685,3530.5,3530.0,3.00680703]
[1641420809463,0.7137971,3530.6,3530.1,1.70924684]
[1641420809665,0.7137971,3530.6,3530.2,0.70789]
[1641420809863,0.7137971,3530.6,3530.4,0.54393626]
[1641420810270,1.21921,3531.7,3531.5,1.09785719]
[1641420810468,0.00141,3531.7,3531.5,1.09785719]
[1641420810669,6.40625266,3531.6,3531.5,1.09785719]
[1641420810868,0.00625266,3531.6,3531.5,1.09785719]
[1641420811512,3.35625266,3531.6,3531.5,1.09785719]
[1641420811713,0.00625266,3531.6,3531.5,1.09785719]
[1641420811911,5.66945266,3531.6,3531.5,1.09785719]
[1641420813011,5.66945266,3531.6,3531.5,1.39785719]
[1641420813419,0.00765266,3531.6,3531.5,1.39785719]
[1641420813817,5.66787888,3531.6,3531.5,4.19785719]
[1641420814017,0.00711888,3531.6,3531.5,1.39785719]
[1641420814216,0.00711888,3531.6,3531.5,2.39785719]
[1641420814416,0.00711888,3531.6,3531.2,0.70792]
[1641420814617,0.00711888,3531.6,3530.7,2.21191]
[1641420814818,0.00711888,3531.6,3531.5,0.00158804]
[1641420815068,0.48802483,3531.6,3531.5,0.00158804]
[1641420815263,0.43802483,3531.6,3531.5,0.00158804]
[1641420815463,12.05122483,3531.6,3531.5,0.00158804]
[1641420815966,12.05122483,3531.6,3531.5,8.804e-05]
[1641420816464,14.00122483,3531.6,3531.5,8.804e-05]
[1641420817971,14.00122483,3531.6,3530.8,4.739e-05]
[1641420817972,7.9,3531.5,3530.8,4.739e-05]
[1641420818170,7.91213134,3530.9,3530.8,4.739e-05]
[1641420818371,13.57533134,3530.9,3529.4,0.00800532]
[1641420818572,13.57533134,3530.9,3528.7,0.01198428]
[1641420818811,13.57533134,3530.9,3529.1,1.25906431]
[1641420818812,3.37960576,3530.8,3529.1,1.25906431]
[1641420819011,0.53579268,3530.6,3528.7,0.01198428]
[1641420819217,15.09105313,3530.5,3529.2,0.00914216]
[1641420819419,15.09105313,3530.5,3528.7,0.01198428]
[1641420819720,15.09105313,3530.5,3528.5,0.01312113]
[1641420819917,0.01292373,3530.1,3528.5,2.113e-05]
[1641420820121,0.01292373,3530.1,3527.6,4.80767353]
[1641420820122,0.01251799,3529.3,3527.8,0.01710009]
[1641420820317,0.01251799,3529.3,3527.7,0.00456852]
[1641420820318,11.82668306,3529.2,3527.7,0.00456852]
[1641420820520,11.8306409,3529.2,3527.7,0.00456852]
[1641420820719,0.00338941,3529.1,3527.7,0.00456852]
[1641420820919,11.329,3529.0,3528.2,1.01489133]
[1641420821117,11.33182099,3529.0,3528.2,1.01489133]
[1641420821320,0.00225256,3528.9,3528.3,0.00115798]
[1641420821521,11.329,3528.8,3528.3,0.00115798]
[1641420821717,11.33068414,3528.8,3528.3,0.00115798]
[1641420821921,7.0,3528.4,3528.3,0.00115798]
[1641420822124,18.329,3528.4,3528.3,0.00115798]
[1641420822963,18.329,3528.4,3527.8,1e-05]
[1641420823164,18.329,3528.4,3526.8,4.80767353]
[1641420823165,0.32738147,3528.3,3526.8,4.80767353]
[1641420823363,0.01284516,3527.2,3526.8,3.98597353]
[1641420823562,0.01284516,3527.2,3525.5,1.11501002]
[1641420823563,7.9,3527.0,3525.5,1.11501002]
[1641420823760,11.329,3526.9,3525.2,1.4299171]
[1641420823959,11.329,3526.9,3526.1,0.00454739]
[1641420824161,0.60534014,3526.8,3526.1,0.00454739]
[1641420824459,11.329,3526.7,3526.1,0.00454739]
[1641420824666,0.01296008,3526.2,3526.1,4.739e-05]
[1641420824859,0.01296008,3526.2,3525.0,0.0008]
[1641420824860,7.9,3526.1,3525.0,0.0008]
[1641420825061,11.329,3526.0,3525.0,0.0008]
[1641420825259,11.329,3526.0,3523.8,0.12510042]
[1641420825260,0.70953,3525.7,3525.1,8.424e-05]
[1641420825462,0.70953,3525.7,3523.8,0.12510042]
[1641420825463,0.00210735,3525.1,3523.8,0.12510042]
[1641420825663,0.01221734,3524.5,3523.8,0.0836215]
[1641420825862,0.01221734,3524.5,3522.6,0.25022371]
[1641420825864,7.9,3523.8,3522.6,0.25022371]
[1641420826062,11.329,3523.7,3522.6,0.25022371]
[1641420826346,0.01236727,3523.2,3522.6,0.25022371]
[1641420826542,0.54252352,3523.0,3522.6,0.25022371]
[1641420826742,11.329,3522.9,3522.7,4.212e-05]
[1641420826952,11.33009473,3522.9,3522.7,4.212e-05]
[1641420827142,11.33009473,3522.9,3521.7,0.45]
[1641420827143,7.9,3522.7,3521.7,0.45]
[1641420827347,11.329,3522.6,3521.7,0.45]
[1641420827544,11.329,3522.6,3521.8,1.581e-05]
[1641420827765,11.329,3522.6,3520.1,2.83898]
[1641420827766,11.329,3522.6,3519.2,9.56843096]
[1641420827767,7.9,3522.1,3519.2,9.56843096]
[1641420827946,0.01261321,3521.4,3519.2,9.56843096]
[1641420828146,8.43709548,3521.2,3521.1,0.00397897]
[1641420828346,19.76609548,3521.2,3521.1,7.897e-05]
[1641420828545,19.229,3521.2,3520.3,0.00462635]
[1641420829446,19.229,3521.2,3520.3,2.635e-05]
[1641420829447,0.59603283,3521.1,3520.3,2.635e-05]
[1641420829646,0.59603283,3521.1,3518.9,0.7137971]
[1641420829647,0.01208078,3520.6,3518.9,0.7137971]
[1641420829851,0.01229526,3519.8,3518.9,0.7137971]
[1641420830074,38.97527394,3519.7,3518.9,0.00691818]
[1641420830280,38.97868448,3519.7,3518.9,0.00691818]
[1641420830469,0.55719684,3519.5,3518.9,0.00691818]
[1641420830671,11.329,3519.4,3518.9,1.818e-05]
[1641420830877,11.33070527,3519.4,3518.9,1.818e-05]
[1641420831071,10.88013684,3519.4,3518.9,1.818e-05]
[1641420831271,10.88013684,3519.4,3519.0,0.00170527]
[1641420832170,0.51804979,3519.3,3519.0,0.00170527]
[1641420832374,5.6658,3519.2,3519.0,5.27e-06]
[1641420832574,13.12655279,3519.1,3517.8,0.66396729]
[1641420832770,5.6658,3519.0,3517.8,0.66396729]
[1641420832973,5.21433684,3518.9,3517.9,1.42823846]
[1641420833170,5.6658,3518.8,3517.9,1.42823846]
[1641420833371,5.77681971,3518.7,3518.0,0.00568423]
[1641420833572,5.6658,3518.6,3518.0,0.00568423]
[1641420833817,5.21433684,3518.5,3518.0,0.00568423]
[1641420834022,5.6658,3518.4,3518.0,0.00568423]
[1641420834219,5.21433684,3518.3,3518.0,0.00568423]
[1641420834419,5.6658,3518.2,3518.0,0.00568423]
[1641420834621,5.21433684,3518.1,3518.0,0.00568423]
[1641420834926,10.88013684,3518.1,3518.0,0.00568423]
[1641420835123,10.88013684,3518.1,3518.0,6.60568423]
[1641420835522,0.00113158,3519.2,3518.1,5.21426316]
[1641420835523,3.158e-05,3519.2,3518.1,5.21426316]
[1641420835727,3.3267,3522.4,3519.8,1.63208054]
[1641420835728,4.34419941,3520.6,3519.8,1.63208054]
[1641420835923,4.34419941,3520.6,3520.4,0.303]
[1641420836121,1.32285017,3520.6,3520.5,1.26572274]
[1641420836321,7.00375017,3520.6,3520.5,1.86572274]
[1641420836522,1.33235337,3520.6,3520.5,9.76572274]
[1641420836725,5.337e-05,3520.6,3520.5,11.21766437]
[1641420836924,4.30806432,3521.9,3520.5,11.21766437]
[1641420836925,4.30806432,3521.9,3520.6,0.00784663]
[1641420837127,4.30806432,3521.9,3520.4,0.303]
[1641420837128,0.01208392,3522.8,3520.4,0.303]
[1641420837323,0.00682108,3521.8,3520.4,0.303]
[1641420837760,0.00625266,3521.7,3520.4,0.303]
[1641420837961,5.6792,3521.6,3520.5,1.12109801]
[1641420838161,5.68488423,3521.6,3520.5,1.12109801]
[1641420838362,0.00511581,3521.5,3521.2,1.17858842]